bitfinex/quotes_BTCUSD_20220201
["timestamp","ask_amount","ask_price","bid_price","bid_amount"]
[1643687284438,0.07865455,38559.0,38558.0,0.86752967]
[1643687285335,0.07865455,38559.0,38558.0,0.86235677]
[1643687285940,0.07865455,38559.0,38558.0,0.96235677]
[1643687286139,0.07865455,38559.0,38558.0,2.48956044]
[1643687286340,0.07865455,38559.0,38558.0,2.49560443]
[1643687286587,0.07865455,38559.0,38558.0,2.69296796]
[1643687286787,0.00152295,38576.0,38558.0,4.19541734]
[1643687286992,0.00152295,38576.0,38569.0,0.064807]
[1643687287186,0.7397,38581.0,38570.0,0.32235]
[1643687287385,0.7397,38581.0,38570.0,0.37235]
[1643687287386,0.00153217,38576.0,38570.0,0.37235]
[1643687287586,0.00153217,38576.0,38570.0,0.1519]
[1643687287791,0.00153217,38576.0,38571.0,0.05]
[1643687287987,0.00153217,38576.0,38572.0,0.0519]
[1643687288186,0.26009722,38579.0,38572.0,0.0519]
[1643687288385,0.26009722,38579.0,38576.0,0.0764894]
[1643687289389,0.26009722,38579.0,38574.0,0.064805]
[1643687289594,0.26009722,38579.0,38572.0,0.1019]
[1643687289789,0.26009722,38579.0,38572.0,0.1519]
[1643687289790,0.26163049,38579.0,38572.0,0.1519]
[1643687289988,0.26163049,38579.0,38572.0,0.21671]
[1643687290540,0.26163049,38579.0,38577.0,0.08640612]
[1643687290736,0.26009722,38579.0,38577.0,0.08640612]
[1643687291136,0.53789803,38579.0,38572.0,0.1519]
[1643687291338,0.2695299,38578.0,38572.0,0.1]
[1643687291739,0.2695299,38578.0,38570.0,0.00131126]
[1643687291740,0.05,38577.0,38570.0,0.02313801]
[1643687291938,0.25858687,38572.0,38570.0,0.02182675]
[1643687292139,0.25858687,38572.0,38570.0,0.02313764]
[1643687292337,0.26327341,38571.0,38570.0,0.02313764]
[1643687292538,0.41259366,38573.0,38570.0,0.00131089]
[1643687293137,0.41259366,38573.0,38562.0,0.064824]
[1643687293341,0.40759366,38573.0,38570.0,0.00131091]
[1643687293538,0.22423817,38571.0,38570.0,0.00131091]
[1643687294385,0.22423817,38571.0,38565.0,0.01892778]
[1643687294586,0.71655581,38573.0,38565.0,0.01892778]
[1643687294790,0.0519,38575.0,38569.0,0.00131094]
[1643687294987,0.0014355,38576.0,38569.0,0.00131094]
[1643687295588,0.24779914,38576.0,38569.0,0.00131094]
[1643687295787,0.24779914,38576.0,38566.0,0.129621]
[1643687295987,0.66359353,38576.0,38566.0,0.179621]
[1643687296188,0.66502911,38576.0,38570.0,0.00131097]
[1643687297088,0.66502911,38576.0,38567.0,0.064815]
[1643687297296,0.66502912,38576.0,38570.0,0.00131097]
[1643687298233,0.66359353,38576.0,38571.0,0.07755715]
[1643687298434,0.00019697,38575.0,38571.0,0.07755715]
[1643687298634,0.00019697,38575.0,38570.0,0.00131096]
[1643687299234,0.00019697,38575.0,38570.0,0.02166036]
[1643687299434,0.00019697,38575.0,38570.0,0.0203494]
[1643687299735,0.00019697,38575.0,38570.0,0.00131096]
[1643687299940,0.28088949,38575.0,38570.0,0.00131096]
[1643687300134,0.28088949,38575.0,38573.0,0.09764502]
[1643687300334,0.00019697,38575.0,38573.0,0.09764502]
[1643687300836,0.00019697,38575.0,38573.0,0.14764502]
[1643687301033,0.00019697,38575.0,38574.0,0.06481]
[1643687301435,0.00019697,38575.0,38574.0,0.31847782]
[1643687301710,0.00039151,38576.0,38575.0,0.45]
[1643687301906,0.1228,38586.0,38575.0,0.74668461]
[1643687302105,0.1228,38586.0,38576.0,0.129596]
[1643687302305,0.1228,38586.0,38577.0,1.10684843]
[1643687302508,0.001,38586.0,38585.0,0.0888624]
[1643687303606,0.046,38587.0,38585.0,0.0888624]
[1643687304006,0.046,38587.0,38584.0,0.064795]
[1643687304208,0.28849189,38586.0,38581.0,0.07127102]
[1643687304607,0.28849189,38586.0,38581.0,0.02127102]
[1643687304808,0.046,38587.0,38581.0,0.02127102]
[1643687305352,0.046,38587.0,38582.0,0.10218885]
[1643687305353,0.22756318,38584.0,38582.0,0.10218885]
[1643687305543,0.22756318,38584.0,38581.0,0.02127102]
[1643687306044,0.22756318,38584.0,38577.0,0.79761493]
[1643687306243,0.22756318,38584.0,38577.0,0.89761493]
[1643687306444,0.22756318,38584.0,38577.0,0.84761493]
[1643687307143,0.22756318,38584.0,38581.0,0.09639472]
[1643687307144,0.00171148,38582.0,38581.0,0.09639472]
[1643687308145,0.22756318,38584.0,38581.0,0.09639472]
[1643687308644,0.00171146,38583.0,38581.0,0.09639472]
[1643687308844,0.00171146,38583.0,38577.0,0.82767]
[1643687309291,0.00171146,38583.0,38577.0,0.8471335]
[1643687309492,0.22756318,38584.0,38577.0,0.8471335]
[1643687309693,0.00153049,38582.0,38577.0,0.82767]
[1643687310096,0.00153049,38582.0,38578.0,0.08119009]
[1643687310293,0.00153049,38582.0,38579.0,0.77763]
[1643687310495,0.22756318,38584.0,38579.0,0.77763]
[1643687310893,0.00153049,38582.0,38579.0,0.77763]
[1643687311894,0.22756318,38584.0,38579.0,0.77763]
[1643687312094,0.00153049,38582.0,38579.0,0.77763]
[1643687312494,0.0519,38581.0,38579.0,0.77763]
[1643687312697,0.89329771,38580.0,38579.0,0.77763]
[1643687312944,0.54083829,38580.0,38579.0,0.77763]
[1643687313143,0.6528188,38580.0,38579.0,0.77763]
[1643687315648,0.6528188,38580.0,38557.0,0.20270435]
[1643687315649,0.89983633,38579.0,38557.0,0.20270435]
[1643687315847,0.89983633,38579.0,38556.0,0.3718]
[1643687315848,0.699,38574.0,38556.0,0.3718]
[1643687316046,0.26286616,38564.0,38559.0,0.08827901]
[1643687316247,0.1019,38563.0,38554.0,0.20270435]
[1643687317084,0.28281295,38561.0,38552.0,0.7787276]
[1643687317282,0.1019,38563.0,38560.0,0.00133054]
[1643687317888,0.1019,38563.0,38552.0,0.7787276]
[1643687317889,0.42898712,38563.0,38552.0,0.7787276]
[1643687318084,0.42898712,38563.0,38560.0,0.00131886]
[1643687318085,0.26458329,38562.0,38560.0,0.00131886]
[1643687318284,0.28189759,38561.0,38560.0,0.00131886]
[1643687318485,0.59815889,38561.0,38560.0,0.00131886]
[1643687318687,0.3162613,38561.0,38560.0,0.00131886]
[1643687318986,0.0519,38561.0,38560.0,0.00131886]
[1643687319186,0.0519,38561.0,38552.0,0.7787276]
[1643687319387,0.05,38563.0,38559.0,0.00131889]
[1643687319787,0.05,38563.0,38562.0,0.09675183]
[1643687321135,0.05,38563.0,38561.0,0.00131882]
[1643687321535,0.05,38563.0,38558.0,0.02075433]
[1643687321737,0.05,38563.0,38560.0,0.00160496]
[1643687322336,0.05,38563.0,38561.0,0.07439033]
[1643687323336,0.025,38563.0,38561.0,0.07439033]
[1643687324485,0.025,38563.0,38560.0,0.00160496]
[1643687324686,0.22853949,38562.0,38560.0,0.00160496]
[1643687324885,0.025,38563.0,38560.0,0.00160496]
[1643687325287,0.025,38563.0,38558.0,0.00103019]
[1643687325490,0.025,38563.0,38560.0,0.00160355]
[1643687326587,0.025,38563.0,38559.0,0.07966954]
[1643687326790,0.025,38563.0,38560.0,0.00160355]
[1643687328833,0.025,38563.0,38559.0,0.07966954]
[1643687329033,0.025,38563.0,38560.0,0.00161158]
[1643687330135,0.025,38563.0,38559.0,0.12966954]
[1643687330336,0.025,38563.0,38560.0,0.00161158]
[1643687331338,0.025,38563.0,38559.0,0.17966954]
[1643687331591,0.025,38563.0,38560.0,0.00161158]
[1643687332393,0.27214548,38562.0,38560.0,0.00161158]
[1643687332694,0.27214548,38562.0,38559.0,0.1]
[1643687332894,0.27214548,38562.0,38560.0,0.00161158]
[1643687333793,0.27214548,38562.0,38558.0,0.00103019]
[1643687333992,0.27214548,38562.0,38559.0,0.00080602]
[1643687334995,0.025,38563.0,38558.0,0.00103019]
[1643687335195,0.025,38563.0,38559.0,0.00080603]
[1643687336236,0.30843879,38563.0,38558.0,0.00103019]
[1643687336436,0.30843879,38563.0,38559.0,0.0016116]
[1643687338539,0.30843879,38563.0,38558.0,0.00103019]
[1643687338939,0.30843879,38563.0,38559.0,0.0016116]
[1643687339788,0.30843879,38563.0,38558.0,0.00103019]
[1643687339990,0.37328879,38563.0,38558.0,0.00103019]
[1643687340290,0.27026506,38562.0,38559.0,0.00125705]
[1643687340491,0.33511806,38562.0,38559.0,0.00125705]
[1643687340893,0.13593178,38561.0,38559.0,0.00125705]
[1643687341093,0.25969286,38560.0,38559.0,0.00125706]
[1643687341291,0.25969286,38560.0,38558.0,7.25e-06]
[1643687341292,0.85,38559.0,38558.0,7.25e-06]
[1643687341491,1.12206792,38559.0,38558.0,7.25e-06]
[1643687341691,0.85,38559.0,38558.0,7.25e-06]
[1643687343339,0.0519,38560.0,38558.0,7.25e-06]
[1643687343737,0.30741762,38559.0,38558.0,7.25e-06]
[1643687344047,0.35931762,38559.0,38558.0,7.25e-06]
[1643687344239,0.60507799,38559.0,38558.0,7.25e-06]
[1643687344840,0.35931762,38559.0,38558.0,7.25e-06]
[1643687347492,0.47291762,38559.0,38558.0,7.25e-06]
[1643687349495,0.1655,38559.0,38558.0,7.25e-06]
[1643687350095,0.0519,38559.0,38558.0,7.25e-06]
[1643687351632,0.32176003,38559.0,38558.0,7.25e-06]
[1643687355487,0.61928477,38559.0,38558.0,7.25e-06]
[1643687355686,0.32176003,38559.0,38558.0,7.25e-06]
[1643687356089,0.45149003,38559.0,38557.0,0.00123119]
[1643687356388,0.5291008,38558.0,38557.0,0.00123119]
[1643687356591,0.3310008,38558.0,38557.0,0.00123119]
[1643687356788,0.15175632,38556.0,38553.0,0.01944471]
[1643687356988,0.064865,38556.0,38553.0,0.01944471]
[1643687357938,0.26292104,38555.0,38550.0,0.0011]
[1643687358135,0.29772708,38552.0,38550.0,0.0011]
[1643687359035,0.53139918,38552.0,38550.0,0.0011]
[1643687359241,0.2336721,38552.0,38550.0,0.0011]
[1643687359438,0.188762,38556.0,38550.0,0.0011]
[1643687360239,0.2465672,38554.0,38550.0,0.0011]
[1643687360838,0.2465672,38554.0,38551.0,0.0015828]
[1643687361439,0.2450372,38554.0,38551.0,0.0015828]
[1643687361691,0.2450372,38554.0,38550.0,0.0011]
[1643687361895,0.2450372,38554.0,38551.0,0.00157463]
[1643687362692,0.3099022,38554.0,38551.0,0.00157463]
[1643687362894,0.3099022,38554.0,38550.0,0.0011]
[1643687363093,0.3099022,38554.0,38551.0,0.00157463]
[1643687364093,0.3099022,38554.0,38550.0,0.0011]
[1643687364397,0.3099022,38554.0,38551.0,0.00157463]
[1643687364994,0.2450372,38554.0,38551.0,0.00157463]
[1643687365195,0.2450372,38554.0,38550.0,0.0011]
[1643687365438,0.2450372,38554.0,38551.0,0.00157601]
[1643687366438,0.50358177,38554.0,38550.0,0.0011]
[1643687366637,0.50358177,38554.0,38551.0,0.00157601]
[1643687367640,0.50358177,38554.0,38550.0,0.0011]
[1643687367839,0.50358177,38554.0,38551.0,0.00157601]
[1643687368542,0.56844477,38554.0,38551.0,0.00157601]
[1643687368941,0.56844477,38554.0,38550.0,0.0011]
[1643687369493,0.56844477,38554.0,38551.0,0.00157578]
[1643687369696,0.50358177,38554.0,38551.0,0.00157578]
[1643687370092,0.50358177,38554.0,38550.0,0.0011]
[1643687370494,0.50358177,38554.0,38551.0,0.00157578]
[1643687371296,0.50358177,38554.0,38550.0,0.0011]
[1643687371497,0.50358177,38554.0,38551.0,0.00125873]
[1643687371895,0.09069482,38552.0,38551.0,0.00125873]
[1643687372097,0.50358177,38554.0,38551.0,0.00125873]
[1643687372596,0.2450372,38554.0,38550.0,0.0011]
[1643687372838,0.2450372,38554.0,38551.0,0.00125873]
[1643687373334,0.1239,38556.0,38551.0,0.00125873]
[1643687373733,0.08626999,38557.0,38551.0,0.00125873]
[1643687373934,0.08626999,38557.0,38550.0,0.0011]
[1643687374133,0.08626999,38557.0,38552.0,0.0012587]
[1643687374332,0.24539919,38555.0,38552.0,0.0012587]
[1643687374936,0.24539919,38555.0,38550.0,0.0011]
[1643687375133,0.24539919,38555.0,38552.0,0.00132845]
[1643687376234,0.24539919,38555.0,38550.0,0.0011]
[1643687376434,0.24539919,38555.0,38552.0,0.00132845]
[1643687377496,0.24539919,38555.0,38550.0,0.0011]
[1643687377693,0.24539919,38555.0,38552.0,0.00132845]
[1643687378691,0.24539919,38555.0,38550.0,0.0011]
[1643687378991,0.24539919,38555.0,38552.0,0.00158131]
[1643687379792,0.24539919,38555.0,38550.0,0.0011]
[1643687379996,0.24539919,38555.0,38552.0,0.00157757]
[1643687380439,0.30848415,38553.0,38552.0,0.00157757]
[1643687381042,0.30848415,38553.0,38550.0,0.0011]
[1643687381441,0.30848415,38553.0,38551.0,0.00157759]
[1643687382241,0.30848415,38553.0,38550.0,0.0011]
[1643687382441,0.30848415,38553.0,38550.0,0.00235834]
[1643687382843,0.24539919,38555.0,38550.0,0.00235834]
[1643687383545,0.24539919,38555.0,38551.0,0.00125833]
[1643687383943,0.49074745,38555.0,38551.0,0.00125833]
[1643687384389,0.49068445,38555.0,38551.0,0.00125833]
[1643687384589,0.49068445,38555.0,38550.0,0.0011]
[1643687384789,0.49068445,38555.0,38551.0,0.00062916]
[1643687385394,0.25990228,38554.0,38551.0,0.00062916]
[1643687385791,0.49068445,38555.0,38550.0,0.0011]
[1643687385990,0.49068445,38555.0,38551.0,0.0008027]
[1643687386992,0.2596089,38554.0,38550.0,0.0011]
[1643687387194,0.25962775,38554.0,38551.0,0.00160538]
[1643687387946,0.49068445,38555.0,38551.0,0.00160538]
[1643687388144,0.25482982,38554.0,38550.0,0.0011]
[1643687388344,0.49068445,38555.0,38551.0,0.0016054]
[1643687389544,0.24534826,38555.0,38551.0,0.00160538]
[1643687390344,0.05,38558.0,38551.0,0.00160538]
[1643687391055,0.05,38565.0,38552.0,0.116751]
[1643687391251,0.05,38565.0,38554.0,0.23015065]
[1643687391448,0.05,38565.0,38562.0,0.08430302]
[1643687391691,0.05,38565.0,38562.0,0.18430302]
[1643687392090,0.05,38565.0,38562.0,0.31395402]
[1643687392493,0.045,38565.0,38562.0,0.31395402]
[1643687392691,0.045,38565.0,38562.0,0.24912802]
[1643687392896,0.045,38565.0,38563.0,0.129653]
[1643687393097,0.045,38565.0,38564.0,0.28329023]
[1643687394895,0.00152904,38570.0,38564.0,0.39811523]
[1643687395536,0.05,38572.0,38564.0,0.39811523]
[1643687395741,0.05,38572.0,38564.0,0.41831488]
[1643687395936,0.0015291,38570.0,38565.0,0.064825]
[1643687396137,0.0015291,38570.0,38566.0,0.27448088]
[1643687396339,0.0015291,38570.0,38567.0,0.129646]
[1643687396542,0.0015291,38570.0,38568.0,0.25315807]
[1643687396738,0.05,38572.0,38568.0,0.25315807]
[1643687396940,0.00156974,38570.0,38567.0,0.129646]
[1643687397139,0.00156974,38570.0,38568.0,0.24907128]
[1643687397738,0.00156974,38570.0,38568.0,0.29907128]
[1643687397940,0.05,38572.0,38569.0,0.31375565]
[1643687398342,0.00156973,38571.0,38569.0,0.31375565]
[1643687398738,0.00156973,38571.0,38569.0,0.064822]
[1643687399191,0.05,38572.0,38569.0,0.064822]
[1643687399391,0.05156971,38572.0,38569.0,0.114822]
[1643687399792,0.05156971,38572.0,38569.0,0.064822]
[1643687400394,0.05,38572.0,38569.0,0.064822]
[1643687400694,0.05156056,38572.0,38570.0,0.25202057]
[1643687400896,0.05156056,38572.0,38570.0,0.05]
[1643687401193,0.05156056,38572.0,38570.0,0.24517948]
[1643687401393,0.05156056,38572.0,38569.0,0.064822]
[1643687401594,0.05,38572.0,38569.0,0.064822]
[1643687402695,0.05,38572.0,38570.0,0.24857924]
[1643687402944,0.05,38572.0,38569.0,0.114822]
[1643687403144,0.05156056,38572.0,38569.0,0.114822]
[1643687403943,0.05,38572.0,38569.0,0.114822]
[1643687404343,0.05156262,38572.0,38569.0,0.114822]
[1643687404947,0.05156262,38572.0,38570.0,0.25196791]
[1643687405144,0.05,38572.0,38570.0,0.25196791]
[1643687405343,0.05,38572.0,38570.0,0.05]
[1643687405544,0.05156262,38572.0,38570.0,0.05]
[1643687405745,0.05156262,38572.0,38569.0,0.05]
[1643687406146,0.05156262,38572.0,38567.0,0.279646]
[1643687406687,0.22376858,38571.0,38567.0,0.279646]
[1643687406987,0.22376858,38571.0,38567.0,0.179646]
[1643687407586,0.57160631,38571.0,38567.0,0.42731222]
[1643687407786,0.57160631,38571.0,38567.0,0.42936485]
[1643687407986,0.22533076,38571.0,38567.0,0.37936485]
[1643687408187,0.00156218,38571.0,38568.0,0.064821]
[1643687408388,0.00156218,38571.0,38569.0,0.36353952]
[1643687408587,0.00156218,38571.0,38570.0,0.68075094]
[1643687408791,0.00156218,38571.0,38570.0,1.56045094]
[1643687408988,0.00156218,38571.0,38570.0,1.66045094]
[1643687409288,0.001,38581.0,38570.0,1.66045094]
[1643687409487,0.001,38581.0,38571.0,0.064806]
[1643687409488,0.00156217,38572.0,38571.0,0.064806]
[1643687409686,0.00156217,38572.0,38571.0,1.64827351]
[1643687410087,0.001,38581.0,38571.0,1.64827351]
[1643687410346,0.001,38581.0,38573.0,0.129608]
[1643687410347,0.00567565,38579.0,38573.0,0.129608]
[1643687410540,0.00567565,38579.0,38574.0,1.14260406]
[1643687410541,0.25671292,38579.0,38574.0,1.14260406]
[1643687410741,0.25671292,38579.0,38575.0,0.1]
[1643687410940,0.25671292,38579.0,38576.0,0.77769]
[1643687411345,0.25103727,38579.0,38576.0,0.82769]
[1643687411642,0.60174172,38579.0,38576.0,0.77769]
[1643687411843,0.23605862,38577.0,38576.0,0.77769]
[1643687412543,0.60174172,38579.0,38576.0,0.77769]
[1643687412544,0.34928532,38579.0,38576.0,0.77769]
[1643687412743,0.34928532,38579.0,38576.0,0.892503]
[1643687412744,0.00141915,38578.0,38576.0,0.892503]
[1643687413744,0.27143709,38581.0,38576.0,0.892503]
[1643687413949,0.00147725,38579.0,38576.0,0.892503]
[1643687414994,0.66367371,38581.0,38576.0,0.892503]
[1643687415196,0.00147722,38579.0,38576.0,0.892503]
[1643687415396,0.00147722,38579.0,38576.0,0.82769]
[1643687415698,0.00138211,38579.0,38576.0,0.82769]
[1643687415895,0.00138211,38579.0,38576.0,0.77769]
[1643687416094,0.66367371,38581.0,38576.0,0.77769]
[1643687417297,0.39323662,38581.0,38576.0,1.03218762]
[1643687417499,0.001,38581.0,38576.0,1.2630124]
[1643687417698,0.00090747,38580.0,38576.0,1.2630124]
[1643687418541,0.001,38581.0,38576.0,1.2630124]
[1643687418944,0.2432317,38578.0,38577.0,0.129613]
[1643687419144,0.2432317,38578.0,38577.0,1.15390712]
[1643687419340,0.2432317,38578.0,38577.0,0.907283]
[1643687419541,0.2432317,38578.0,38577.0,1.21194499]
[1643687419741,0.2432317,38578.0,38577.0,0.957283]
[1643687419942,0.2432317,38578.0,38577.0,1.20304927]
[1643687420340,0.2432317,38578.0,38577.0,0.907283]
[1643687421588,0.00170957,38579.0,38577.0,0.907283]
[1643687422189,0.001,38581.0,38578.0,0.24631307]
[1643687422392,0.001,38581.0,38580.0,0.07664375]
[1643687422690,0.29302349,38581.0,38580.0,0.85424375]
[1643687423691,0.29302349,38581.0,38580.0,0.7776]
[1643687423892,0.29302349,38581.0,38577.0,0.129613]
[1643687423893,0.85,38580.0,38577.0,0.129613]
[1643687424100,0.0519,38579.0,38564.0,0.3985]
[1643687424295,0.27206792,38578.0,38576.0,0.02138158]
[1643687424492,0.3019,38577.0,38576.0,0.02138158]
[1643687424694,0.3019,38577.0,38569.0,0.064822]
[1643687424892,0.24210861,38573.0,38569.0,0.064822]
[1643687425345,0.2438183,38573.0,38569.0,0.064822]
[1643687425737,0.00170969,38573.0,38569.0,0.064822]
[1643687425938,0.47250703,38574.0,38569.0,0.064822]
[1643687426139,0.0015099,38573.0,38569.0,0.064822]
[1643687426538,0.0015099,38573.0,38567.0,0.23092264]
[1643687426739,0.30943183,38573.0,38567.0,0.23092264]
[1643687427140,0.47250703,38574.0,38567.0,0.23092264]
[1643687427439,0.00137689,38572.0,38567.0,0.23092264]
[1643687428145,0.00137689,38572.0,38570.0,0.23666425]
[1643687428339,0.00137689,38572.0,38571.0,0.064816]
[1643687428940,0.1019,38574.0,38571.0,0.064816]
[1643687429890,0.10334709,38574.0,38571.0,0.064816]
[1643687430491,0.10334709,38574.0,38573.0,0.09866651]
[1643687430789,0.1019,38574.0,38573.0,0.09866651]
[1643687433237,0.0519,38574.0,38573.0,0.09866651]
[1643687433437,0.00144707,38575.0,38573.0,0.09866651]
[1643687433640,0.00144707,38575.0,38574.0,0.064805]
[1643687434238,0.00144707,38575.0,38574.0,0.164805]
[1643687434438,0.24397015,38578.0,38574.0,0.164805]
[1643687434837,0.0014299,38576.0,38574.0,0.164805]
[1643687435037,0.0014299,38576.0,38574.0,0.064805]
[1643687435439,0.0014299,38576.0,38573.0,0.12961]
[1643687435640,0.24397015,38578.0,38573.0,0.12961]
[1643687435841,0.24725586,38580.0,38573.0,0.12961]
[1643687436039,0.00142989,38577.0,38573.0,0.12961]
[1643687436789,0.24725586,38580.0,38573.0,0.12961]
[1643687436989,0.08416589,38578.0,38573.0,0.12961]
[1643687437193,0.00142989,38577.0,38573.0,0.12961]
[1643687437391,0.00142989,38577.0,38572.0,0.129622]
[1643687437991,0.47738758,38580.0,38572.0,0.129622]
[1643687438392,0.00143337,38576.0,38572.0,0.129622]
[1643687439293,0.47738758,38580.0,38572.0,0.129622]
[1643687439794,0.00143338,38576.0,38572.0,0.129622]
[1643687440443,0.47738758,38580.0,38572.0,0.129622]
[1643687440844,0.00143338,38576.0,38572.0,0.26616828]
[1643687441042,0.00143338,38576.0,38572.0,0.38792132]
[1643687441244,0.00143338,38576.0,38574.0,0.064807]
[1643687441543,0.2165651,38580.0,38574.0,0.064807]
[1643687441942,0.00143262,38577.0,38574.0,0.064807]
[1643687442844,0.001,38581.0,38574.0,0.064807]
[1643687443844,0.23642476,38581.0,38574.0,0.064807]
[1643687444494,0.23642476,38581.0,38574.0,0.08544611]
[1643687444693,0.001,38581.0,38576.0,0.064808]
[1643687445295,0.001,38581.0,38577.0,0.2520537]
[1643687445494,0.001,38581.0,38576.0,0.064808]
[1643687445695,0.00171111,38580.0,38576.0,0.064808]
[1643687445893,0.00171111,38580.0,38576.0,0.08451067]
[1643687446398,0.00171111,38580.0,38576.0,0.01970267]
[1643687446598,0.10207204,38580.0,38576.0,0.01970267]
[1643687446896,0.10378316,38580.0,38576.0,0.01970267]
[1643687447846,0.28430015,38581.0,38576.0,0.01970267]
[1643687448043,0.00171112,38580.0,38576.0,0.01970267]
[1643687448242,0.00171112,38580.0,38572.0,0.129622]
[1643687448442,0.00171112,38580.0,38573.0,0.25114678]
[1643687448742,0.00171112,38580.0,38575.0,0.064814]
[1643687448944,0.28430015,38581.0,38575.0,0.064814]
[1643687449344,0.00153009,38578.0,38575.0,0.064814]
[1643687450048,0.28430015,38581.0,38575.0,0.064814]
[1643687450246,0.28430015,38581.0,38572.0,0.129622]
[1643687450247,0.27588743,38576.0,38572.0,0.129622]
[1643687450449,0.27588743,38576.0,38571.0,0.01933932]
[1643687450646,0.27588743,38576.0,38571.0,0.08416032]
[1643687450851,0.0519,38575.0,38571.0,0.13416032]
[1643687452693,0.0519,38575.0,38571.0,0.114821]
[1643687453091,0.0519,38575.0,38571.0,0.064821]
[1643687454190,0.0519,38575.0,38572.0,0.28648098]
[1643687454391,0.0519,38575.0,38572.0,0.41610798]
[1643687455092,0.0519,38575.0,38572.0,0.129627]
[1643687456740,0.0519,38575.0,38572.0,0.12952324]
[1643687457143,0.00156161,38578.0,38573.0,0.07973435]
[1643687457341,0.34490015,38581.0,38573.0,0.07973435]
[1643687457742,0.00141722,38578.0,38573.0,0.07973435]
[1643687457947,0.00141722,38578.0,38573.0,0.10161338]
[1643687458142,0.00141722,38578.0,38573.0,0.34912496]
[1643687458343,0.00141722,38578.0,38573.0,0.32878027]
[1643687458544,0.34490015,38581.0,38574.0,0.064813]
[1643687458846,0.00141726,38578.0,38574.0,0.064813]
[1643687460102,0.00141933,38578.0,38574.0,0.064813]
[1643687461101,0.74645342,38581.0,38574.0,0.16602457]
[1643687461301,0.00143606,38578.0,38574.0,0.16602457]
[1643687462402,0.1135,38581.0,38575.0,0.25033771]
[1643687462604,0.00143606,38578.0,38576.0,0.064809]
[1643687463359,0.001,38581.0,38576.0,0.064809]
[1643687463556,0.001,38581.0,38576.0,0.30512923]
[1643687463756,0.00143558,38579.0,38576.0,0.30512923]
[1643687464557,0.001,38581.0,38576.0,0.30512923]
[1643687465057,0.00156325,38579.0,38576.0,0.30512923]
[1643687465863,0.001,38581.0,38576.0,0.30512923]
[1643687466058,0.00156325,38579.0,38576.0,0.30512923]
[1643687466258,0.00156325,38579.0,38577.0,0.24728426]
[1643687466896,0.00156325,38579.0,38577.0,0.39728426]
[1643687467096,0.001,38581.0,38577.0,0.2019]
[1643687467296,0.001,38581.0,38579.0,0.064793]
[1643687467497,0.00156334,38580.0,38579.0,0.129587]
[1643687467898,0.00156334,38580.0,38579.0,0.179587]
[1643687468097,0.00156334,38580.0,38579.0,0.279587]
[1643687468300,0.001,38581.0,38579.0,0.279587]
[1643687468602,0.00245976,38581.0,38579.0,0.279587]
[1643687469499,0.001,38581.0,38579.0,0.279587]
[1643687469901,0.001,38581.0,38579.0,0.214793]
[1643687470355,0.001,38581.0,38579.0,0.064793]
[1643687471546,0.001,38581.0,38577.0,0.279601]
[1643687471746,0.001,38581.0,38577.0,0.129601]
[1643687472148,0.001,38581.0,38577.0,0.179601]
[1643687472448,0.00243659,38581.0,38578.0,0.064794]
[1643687473247,0.001,38581.0,38579.0,0.25056024]
[1643687473651,0.00243658,38581.0,38579.0,0.25056024]
[1643687474292,0.00243658,38581.0,38580.0,0.27784801]
[1643687474493,0.001,38581.0,38580.0,0.27784801]
[1643687475793,0.06479796,38587.0,38580.0,0.27784801]
[1643687475992,0.00156347,38582.0,38581.0,0.064798]
[1643687476196,0.00156347,38582.0,38581.0,0.32915697]
[1643687476995,0.05,38587.0,38581.0,0.44394897]
[1643687477194,0.00156345,38583.0,38581.0,0.44394897]
[1643687477392,0.00156345,38583.0,38582.0,0.26106465]
[1643687477849,0.00156345,38583.0,38582.0,0.49556962]
[1643687478043,0.05,38587.0,38582.0,0.49556962]
[1643687478240,0.05,38587.0,38583.0,0.064792]
[1643687478440,0.00156343,38584.0,38583.0,0.064792]
[1643687478641,0.00156343,38584.0,38583.0,0.31315769]
[1643687479241,0.001,38588.0,38583.0,0.31315769]
[1643687479441,0.00156342,38585.0,38583.0,0.31315769]
[1643687479742,0.00156342,38585.0,38584.0,0.08904108]
[1643687480041,0.00156342,38585.0,38584.0,0.21862308]
[1643687480241,0.00156342,38585.0,38584.0,0.46971809]
[1643687480442,0.001,38588.0,38584.0,0.46971809]
[1643687480644,0.001,38588.0,38584.0,0.31862308]
[1643687480844,0.001,38588.0,38584.0,0.08904108]
[1643687481689,0.26827434,38587.0,38584.0,0.08904108]
[1643687482290,0.27002168,38585.0,38584.0,0.08904108]
[1643687482589,0.26827434,38587.0,38584.0,0.08904108]
[1643687483190,0.00156461,38586.0,38584.0,0.08904108]
[1643687483390,0.06636522,38586.0,38583.0,0.01823266]
[1643687483595,0.32800393,38586.0,38583.0,0.01823266]
[1643687483791,0.32800393,38586.0,38583.0,0.08303266]
[1643687484191,0.32643932,38586.0,38583.0,0.08303266]
[1643687484391,0.06636522,38586.0,38583.0,0.08303266]
[1643687484794,0.06636522,38586.0,38584.0,0.10177989]
[1643687485192,0.06636522,38586.0,38583.0,0.01823266]
[1643687485467,0.06480061,38586.0,38583.0,0.01823266]
[1643687485669,0.12960461,38586.0,38583.0,0.01823266]
[1643687486065,0.27085983,38585.0,38583.0,0.01823266]
[1643687486266,0.27085983,38585.0,38581.0,0.07451741]
[1643687487270,0.06481,38584.0,38577.0,0.1227]
[1643687487569,0.19442478,38584.0,38576.0,0.2771702]
[1643687487766,0.19442478,38584.0,38576.0,0.0282]
[1643687487968,0.00156468,38582.0,38576.0,0.0282]
[1643687488166,0.2749718,38581.0,38576.0,0.11539493]
[1643687488567,0.2749718,38581.0,38577.0,0.02012424]
[1643687488768,0.2749718,38581.0,38576.0,0.16539493]
[1643687488971,0.06481031,38581.0,38576.0,0.16539493]
[1643687489202,0.00156471,38580.0,38576.0,0.16539493]
[1643687490000,0.00156471,38580.0,38576.0,0.23020093]
[1643687490199,0.06481031,38581.0,38576.0,0.23020093]
[1643687490498,0.00156472,38580.0,38576.0,0.23020093]
[1643687491324,0.06481031,38581.0,38576.0,0.143006]
[1643687491500,0.00156472,38580.0,38576.0,0.0782]
[1643687491901,0.00156472,38580.0,38576.0,0.0282]
[1643687492499,0.06481031,38581.0,38576.0,0.0282]
[1643687492949,0.06137503,38581.0,38576.0,0.0282]
[1643687493550,0.06137503,38581.0,38576.0,0.093007]
[1643687494150,0.06137503,38581.0,38576.0,0.0282]
[1643687494553,0.2382347,38578.0,38576.0,0.0282]
[1643687494752,0.30304938,38578.0,38576.0,0.0282]